fUSD/lending_fUSD_20240501
["ID","MTS","AMOUNT","RATE_DAILY","PERIOD"]
[325125351,1714528247102,-151.0,0.00012777,2]
[325125353,1714528247113,-151.0,0.00012777,2]
[325125355,1714528247122,-617.112112,0.00012777,2]
[325125357,1714528247132,-617.112112,0.00012777,2]
[325125359,1714528247141,-617.112112,0.00012777,2]
[325125361,1714528247151,-617.112112,0.00012777,2]
[325125363,1714528247160,-151.0,0.00012777,2]
[325125365,1714528247170,-151.0,0.00012777,2]
[325125367,1714528247179,-172.483905,0.00012777,2]
[325125369,1714528247187,-206.790171,0.00012777,2]
[325125371,1714528247197,-206.790171,0.00012777,2]
[325125373,1714528247206,-151.0,0.00012777,2]
[325125375,1714528247215,-151.104366,0.00012777,2]
[325125377,1714528247225,-846.386611,0.00012777,2]
[325125379,1714528247234,-206.790171,0.00012777,2]
[325125381,1714528247244,-324.778298,0.00012777,2]
[325125383,1714528247253,-846.386611,0.00012777,2]
[325125385,1714528247263,-324.778298,0.00012777,2]
[325125387,1714528247273,-206.790171,0.00012777,2]
[325125389,1714528247283,-846.386611,0.00012777,2]
[325125391,1714528247292,-324.778298,0.00012777,2]
[325125393,1714528247301,-846.386611,0.00012777,2]
[325125395,1714528247310,-324.778298,0.00012777,2]
[325125397,1714528247319,-151.0,0.00012777,2]
[325125399,1714528247329,-203.710258,0.00012777,2]
[325125401,1714528247338,-153.656872,0.00012777,2]
[325125403,1714528247347,-203.710258,0.00012777,2]
[325125405,1714528247359,-203.710258,0.00012777,2]
[325125407,1714528247368,-203.710258,0.00012777,2]
[325125409,1714528247377,-351.792258,0.00012777,2]
[325125411,1714528247386,-351.792258,0.00012777,2]
[325125413,1714528247396,-351.792258,0.00012777,2]
[325125415,1714528247405,-351.792258,0.00012777,2]
[325125417,1714528247414,-151.0,0.00012777,2]
[325125419,1714528247423,-152.465121,0.00012777,2]
[325125421,1714528247433,-217.343379,0.00012777,2]
[325125423,1714528247443,-217.343379,0.00012777,2]
[325125425,1714528247453,-217.343379,0.00012777,2]
[325125428,1714528247462,-217.343379,0.00012777,2]
[325125430,1714528247472,-217.343379,0.00012777,2]
[325125432,1714528247481,-217.343379,0.00012777,2]
[325125434,1714528247490,-151.0,0.00012777,2]
[325125435,1714528247499,-151.0,0.00012777,2]
[325125438,1714528247509,-151.0,0.00012777,2]
[325125440,1714528247519,-269.426425,0.00012777,2]
[325125442,1714528247528,-325.168371,0.00012777,2]
[325125444,1714528247537,-325.168371,0.00012777,2]
[325125446,1714528247547,-325.168371,0.00012777,2]
[325125448,1714528247556,-151.0,0.00012777,2]
[325125449,1714528247565,-151.0,0.00012777,2]
[325125450,1714528247575,-151.0,0.00012777,2]
[325125451,1714528247584,-151.0,0.00012777,2]
[325125452,1714528247593,-325.168371,0.00012777,2]
[325125453,1714528247602,-325.168371,0.00012777,2]
[325125454,1714528247616,-243.876731,0.00012777,2]
[325125456,1714528247625,-325.168371,0.00012777,2]
[325125458,1714528247635,-184.975745,0.00012777,2]
[325125460,1714528247644,-184.975745,0.00012777,2]
[325125462,1714528247653,-184.975745,0.00012777,2]
[325125464,1714528247662,-184.975745,0.00012777,2]
[325125466,1714528247672,-151.0,0.00012777,2]
[325125468,1714528247682,-151.0,0.00012777,2]
[325125470,1714528247691,-151.0,0.00012777,2]
[325125472,1714528247700,-151.0,0.00012777,2]
[325125474,1714528247709,-151.0,0.00012777,2]
[325125476,1714528247718,-6748.348404,0.00012777,2]
[325125478,1714528247727,-500.0,0.00012778,2]
[325125480,1714528247736,-156.45987158,0.00012778,2]
[325125482,1714528247746,-508.59634428,0.00012778,2]
[325125484,1714528247755,-500.0,0.00012778,2]
[325125486,1714528247764,-507.77978101,0.00012778,2]
[325125488,1714528247774,-513.39298691,0.00012778,2]
[325125490,1714528247783,-505.46465357,0.00012778,2]
[325125492,1714528247792,-500.0,0.00012778,2]
[325125494,1714528247801,-504.99136412,0.00012778,2]
[325125496,1714528247811,-585.69908787,0.00012778,2]
[325125498,1714528247820,-500.0,0.00012778,2]
[325125500,1714528247829,-500.0,0.00012778,2]
[325125502,1714528247838,-500.0,0.00012778,2]
[325125505,1714528247848,-151.0,0.00012778,2]
[325125507,1714528247859,-506.25826537,0.00012778,2]
[325125508,1714528247870,-505.21925946,0.00012778,2]
[325125510,1714528247880,-500.0,0.00012778,2]
[325125512,1714528247889,-151.0,0.00012778,2]
[325125514,1714528247898,-151.0,0.00012778,2]
[325125516,1714528247907,-222.476,0.00012778,2]
[325125518,1714528247916,-222.476,0.00012778,2]
[325125520,1714528247930,-509.55898576,0.00012778,2]
[325125522,1714528247939,-500.0,0.00012778,2]
[325125524,1714528247949,-505.42293815,0.00012778,2]
[325125526,1714528247957,-513.46575762,0.00012778,2]
[325125528,1714528247966,-507.44154778,0.00012778,2]
[325125530,1714528247977,-553.34689146,0.00012778,2]
[325125532,1714528247986,-514.43618947,0.00012778,2]
[325125535,1714528247996,-510.87168097,0.00012778,2]
[325125536,1714528248005,-213.023168,0.00012778,2]
[325125539,1714528248015,-307.24618623,0.00012778,2]
[325125540,1714528248025,-213.023168,0.00012778,2]
[325125543,1714528248035,-504.86904988,0.00012778,2]
[325125545,1714528248044,-151.0,0.00012778,2]
[325125547,1714528248053,-509.32544278,0.00012778,2]
[325125549,1714528248062,-505.66882919,0.00012778,2]
[325125551,1714528248071,-152.221571,0.00012778,2]
[325125552,1714528248080,-509.34234403,0.00012778,2]
[325125554,1714528248088,-500.0,0.00012778,2]
[325125556,1714528248097,-500.0,0.00012778,2]
[325125558,1714528248105,-504.30588305,0.00012778,2]
[325125560,1714528248116,-204.211994,0.00012778,2]
[325125562,1714528248124,-246.299435,0.00012778,2]
[325125564,1714528248133,-204.211994,0.00012778,2]
[325125566,1714528248141,-516.18288138,0.00012778,2]
[325125568,1714528248150,-511.64966085,0.00012778,2]
[325125570,1714528248159,-506.51834835,0.00012778,2]
[325125571,1714528248169,-500.0,0.00012778,2]
[325125573,1714528248177,-500.0,0.00012778,2]
[325125574,1714528248187,-552.50410968,0.00012778,2]
[325125576,1714528248196,-151.0,0.00012778,2]
[325125578,1714528248205,-500.0,0.00012778,2]
[325125579,1714528248214,-500.0,0.00012778,2]
[325125581,1714528248223,-500.0,0.00012778,2]
[325125582,1714528248232,-151.463769,0.00012778,2]
[325125584,1714528248241,-509.67054419,0.00012778,2]
[325125586,1714528248250,-509.3772167,0.00012778,2]
[325125587,1714528248259,-500.0,0.00012778,2]
[325125589,1714528248269,-500.0,0.00012778,2]
[325125590,1714528248278,-353.4637637,0.00012778,2]
[325125592,1714528248287,-500.0,0.00012778,2]
[325125594,1714528248296,-500.0,0.00012778,2]
[325125595,1714528248305,-500.0,0.00012778,2]
[325125597,1714528248315,-500.0,0.00012778,2]
[325125599,1714528248325,-500.0,0.00012778,2]
[325125600,1714528248334,-522.49814596,0.00012778,2]
[325125602,1714528248343,-151.0,0.00012778,2]
[325125604,1714528248352,-151.0,0.00012778,2]
[325125606,1714528248364,-504.59178814,0.00012778,2]
[325125607,1714528248373,-151.0,0.00012778,2]
[325125609,1714528248382,-151.0,0.00012778,2]
[325125611,1714528248392,-500.0,0.00012778,2]
[325125612,1714528248401,-151.0,0.00012778,2]
[325125614,1714528248411,-151.0,0.00012778,2]
[325125615,1714528248422,-507.09773565,0.00012778,2]
[325125617,1714528248432,-151.0,0.00012778,2]
[325125619,1714528248442,-151.0,0.00012778,2]
[325125621,1714528248451,-500.0,0.00012778,2]
[325125622,1714528248460,-513.5506019,0.00012778,2]
[325125624,1714528248472,-500.0,0.00012778,2]
[325125626,1714528248482,-151.0,0.00012778,2]
[325125627,1714528248491,-155.848181,0.00012778,2]
[325125629,1714528248501,-500.0,0.00012778,2]
[325125631,1714528248510,-500.0,0.00012778,2]
[325125633,1714528248520,-500.0,0.00012778,2]
[325125634,1714528248529,-500.0,0.00012778,2]
[325125636,1714528248539,-500.0,0.00012778,2]
[325125638,1714528248549,-507.28887355,0.00012778,2]
[325125640,1714528248560,-193.607631,0.00012778,2]
[325125642,1714528248570,-193.607631,0.00012778,2]
[325125643,1714528248579,-502.5364668,0.00012778,2]
[325125645,1714528248589,-500.0,0.00012778,2]
[325125647,1714528248598,-193.607631,0.00012778,2]
[325125649,1714528248612,-193.607631,0.00012778,2]
[325125650,1714528248621,-500.0,0.00012778,2]
[325125652,1714528248630,-500.0,0.00012778,2]
[325125654,1714528248644,-500.0,0.00012778,2]
[325125656,1714528248657,-179.132223,0.00012778,2]
[325125658,1714528248669,-500.0,0.00012778,2]
[325125661,1714528248682,-179.132223,0.00012778,2]
[325125662,1714528248693,-151.262645,0.00012778,2]
[325125664,1714528248704,-509.7065044,0.00012778,2]
[325125667,1714528248717,-504.89793975,0.00012778,2]
[325125668,1714528248730,-179.132223,0.00012778,2]
[325125670,1714528248741,-179.132223,0.00012778,2]
[325125672,1714528248754,-500.0,0.00012778,2]
[325125674,1714528248767,-733.926139,0.00012778,2]
[325125677,1714528248779,-733.926139,0.00012778,2]
[325125679,1714528248792,-500.0,0.00012778,2]
[325125681,1714528248804,-172.77807,0.00012778,2]
[325125683,1714528248816,-500.0,0.00012778,2]
[325125685,1714528248827,-733.926139,0.00012778,2]
[325125687,1714528248838,-733.926139,0.00012778,2]
[325125689,1714528248850,-500.0,0.00012778,2]
[325125691,1714528248863,-500.0,0.00012778,2]
[325125692,1714528248875,-500.0,0.00012778,2]
[325125695,1714528248887,-500.0,0.00012778,2]
[325125697,1714528248899,-517.15554099,0.00012778,2]
[325125698,1714528248910,-500.0,0.00012778,2]
[325125699,1714528248921,-642.49363349,0.00012778,2]
[325125700,1714528248932,-190.734781,0.00012778,2]
[325125701,1714528248943,-190.734781,0.00012778,2]
[325125702,1714528248955,-500.0,0.00012778,2]
[325125703,1714528248969,-190.734781,0.00012778,2]
[325125704,1714528248980,-190.734781,0.00012778,2]
[325125706,1714528248992,-614.03652787,0.00012778,2]
[325125708,1714528249004,-500.0,0.00012778,2]
[325125711,1714528249017,-151.0,0.00012778,2]
[325125713,1714528249029,-151.0,0.00012778,2]
[325125716,1714528249041,-151.0,0.00012778,2]
[325125718,1714528249053,-151.0,0.00012778,2]
[325125720,1714528249064,-511.12503522,0.00012778,2]
[325125722,1714528249074,-500.0,0.00012778,2]
[325125724,1714528249085,-154.718586,0.00012778,2]
[325125726,1714528249095,-154.718586,0.00012778,2]
[325125728,1714528249105,-154.718586,0.00012778,2]
[325125731,1714528249121,-154.718586,0.00012778,2]
[325125733,1714528249132,-500.0,0.00012778,2]
[325125735,1714528249143,-387.414449,0.00012778,2]
[325125738,1714528249156,-387.414449,0.00012778,2]
[325125740,1714528249166,-387.414449,0.00012778,2]
[325125742,1714528249176,-387.414449,0.00012778,2]
[325125744,1714528249187,-151.0,0.00012778,2]
[325125746,1714528249198,-151.150314,0.00012778,2]
[325125749,1714528249211,-151.0,0.00012778,2]
[325125751,1714528249223,-151.0,0.00012778,2]
[325125753,1714528249235,-500.0,0.00012778,2]
[325125755,1714528249247,-151.0,0.00012778,2]
[325125757,1714528249257,-151.0,0.00012778,2]
[325125760,1714528249267,-500.0,0.00012778,2]
[325125762,1714528249277,-151.0,0.00012778,2]
[325125764,1714528249288,-151.0,0.00012778,2]
[325125766,1714528249299,-151.0,0.00012778,2]
[325125768,1714528249309,-502.59791828,0.00012778,2]
[325125770,1714528249320,-151.0,0.00012778,2]
[325125772,1714528249330,-151.0,0.00012778,2]
[325125774,1714528249340,-151.0,0.00012778,2]
[325125777,1714528249351,-502.24537096,0.00012778,2]
[325125779,1714528249363,-501.71125231,0.00012778,2]
[325125781,1714528249374,-505.04158079,0.00012778,2]
[325125783,1714528249385,-500.0,0.00012778,2]
[325125785,1714528249396,-1327.18461,0.00012778,2]
[325125787,1714528249406,-1327.18461,0.00012778,2]
[325125789,1714528249417,-1327.18461,0.00012778,2]
[325125792,1714528249428,-1327.18461,0.00012778,2]
[325125794,1714528249439,-1327.18461,0.00012778,2]
[325125796,1714528249449,-1327.18461,0.00012778,2]
[325125798,1714528249460,-151.0,0.00012778,2]
[325125800,1714528249471,-151.0,0.00012778,2]
[325125802,1714528249482,-151.0,0.00012778,2]
[325125805,1714528249493,-417.078989,0.00012778,2]
[325125807,1714528249504,-417.078989,0.00012778,2]
[325125809,1714528249515,-417.078989,0.00012778,2]
[325125811,1714528249526,-151.0,0.00012778,2]
[325125813,1714528249537,-151.66358,0.00012778,2]
[325125815,1714528249547,-500.0,0.00012778,2]
[325125817,1714528249557,-417.078989,0.00012778,2]
[325125820,1714528249570,-417.078989,0.00012778,2]
[325125822,1714528249581,-417.078989,0.00012778,2]
[325125824,1714528249591,-151.0,0.00012778,2]
[325125826,1714528249602,-151.0,0.00012778,2]
[325125829,1714528249614,-151.0,0.00012778,2]
[325125831,1714528249624,-151.0,0.00012778,2]
[325125833,1714528249635,-151.0,0.00012778,2]
[325125835,1714528249645,-151.0,0.00012778,2]
[325125837,1714528249656,-502.05664768,0.00012778,2]
[325125839,1714528249667,-152.04725,0.00012778,2]
[325125842,1714528249678,-151.0,0.00012778,2]
[325125844,1714528249690,-151.0,0.00012778,2]
[325125846,1714528249700,-504.49653171,0.00012778,2]
[325125848,1714528249711,-604.3498717,0.00012778,2]
[325125850,1714528249722,-151.0,0.00012778,2]
[325125853,1714528249733,-151.0,0.00012778,2]
[325125855,1714528249743,-500.0,0.00012778,2]
[325125857,1714528249754,-500.0,0.00012778,2]
[325125859,1714528249764,-151.0,0.00012778,2]
[325125861,1714528249775,-151.0,0.00012778,2]
[325125863,1714528249786,-504.05002985,0.00012778,2]
[325125865,1714528249797,-151.0,0.00012778,2]
[325125868,1714528249808,-151.162473,0.00012778,2]
[325125870,1714528249819,-151.0,0.00012778,2]
[325125872,1714528249830,-151.0,0.00012778,2]
[325125874,1714528249841,-151.0,0.00012778,2]
[325125877,1714528249852,-500.0,0.00012778,2]
[325125879,1714528249864,-151.0,0.00012778,2]
[325125881,1714528249876,-500.0,0.00012778,2]
[325125883,1714528249888,-151.0,0.00012778,2]
[325125885,1714528249898,-151.0,0.00012778,2]
[325125888,1714528249909,-500.0,0.00012778,2]
[325125890,1714528249920,-500.0,0.00012778,2]
[325125892,1714528249933,-1318.952359,0.00012778,2]
[325125894,1714528249944,-1318.952359,0.00012778,2]
[325125896,1714528249955,-503.16702622,0.00012778,2]
[325125898,1714528249966,-500.0,0.00012778,2]
[325125901,1714528249977,-1318.952359,0.00012778,2]
[325125903,1714528249988,-1318.952359,0.00012778,2]
[325125905,1714528249998,-500.0,0.00012778,2]
[325125907,1714528250010,-502.4993389,0.00012778,2]
[325125909,1714528250021,-151.398429,0.00012778,2]
[325125911,1714528250031,-500.0,0.00012778,2]
[325125914,1714528250042,-152.053229,0.00012778,2]
[325125916,1714528250053,-676.383792,0.00012778,2]
[325125918,1714528250064,-676.383792,0.00012778,2]
[325125920,1714528250074,-676.383792,0.00012778,2]
[325125922,1714528250085,-676.383792,0.00012778,2]
[325125924,1714528250096,-500.0,0.00012778,2]
[325125926,1714528250106,-500.0,0.00012778,2]
[325125929,1714528250118,-227.338545,0.00012778,2]
[325125931,1714528250129,-227.338545,0.00012778,2]
[325125933,1714528250139,-500.0,0.00012778,2]
[325125935,1714528250150,-227.338545,0.00012778,2]
[325125937,1714528250161,-227.338545,0.00012778,2]
[325125939,1714528250171,-151.0,0.00012778,2]
[325125942,1714528250182,-151.0,0.00012778,2]
[325125944,1714528250193,-500.0,0.00012778,2]
[325125946,1714528250204,-690.0326,0.00012778,2]
[325125948,1714528250215,-690.0326,0.00012778,2]
[325125950,1714528250225,-151.0,0.00012778,2]
[325125952,1714528250236,-502.84451656,0.00012778,2]
[325125955,1714528250247,-154.335064,0.00012778,2]
[325125957,1714528250257,-690.0326,0.00012778,2]
[325125959,1714528250268,-690.0326,0.00012778,2]
[325125961,1714528250279,-500.0,0.00012778,2]
[325125963,1714528250290,-501.74767922,0.00012778,2]
[325125965,1714528250300,-154.34975,0.00012778,2]
[325125967,1714528250312,-760.822074,0.00012778,2]
[325125970,1714528250322,-760.822074,0.00012778,2]
[325125972,1714528250334,-618.62,0.00012778,2]
[325125974,1714528250345,-151.0,0.00012778,2]
[325125976,1714528250356,-151.0,0.00012778,2]
[325125978,1714528250368,-483.40603442,0.00012778,2]
[325125981,1714528250379,-151.0,0.00012778,2]
[325125983,1714528250390,-500.0,0.00012778,2]
[325125985,1714528250401,-500.0,0.00012778,2]
[325125987,1714528250412,-500.0,0.00012778,2]
[325125989,1714528250423,-506.10665853,0.00012778,2]
[325125992,1714528250435,-504.22263509,0.00012778,2]
[325125994,1714528250446,-501.24909314,0.00012778,2]
[325125996,1714528250457,-510.52530023,0.00012778,2]
[325125998,1714528250468,-159.960583,0.00012778,2]
[325126000,1714528250480,-159.960583,0.00012778,2]
[325126002,1714528250491,-279.037656,0.00012778,2]
[325126005,1714528250502,-500.0,0.00012778,2]
[325126007,1714528250512,-159.960583,0.00012778,2]
[325126009,1714528250524,-279.037656,0.00012778,2]
[325126011,1714528250534,-279.037656,0.00012778,2]
[325126013,1714528250543,-159.960583,0.00012778,2]
[325126015,1714528250552,-159.960583,0.00012778,2]
[325126017,1714528250561,-159.960583,0.00012778,2]
[325126019,1714528250570,-500.0,0.00012778,2]
[325126021,1714528250579,-279.037656,0.00012778,2]
[325126023,1714528250588,-279.037656,0.00012778,2]
[325126025,1714528250598,-279.037656,0.00012778,2]
[325126026,1714528250607,-507.18385453,0.00012778,2]
[325126027,1714528250616,-502.21759815,0.00012778,2]
[325126028,1714528250625,-502.78112361,0.00012778,2]
[325126029,1714528250634,-500.0,0.00012778,2]
[325126030,1714528250643,-151.0,0.00012778,2]
[325126031,1714528250652,-151.0,0.00012778,2]
[325126058,1714528250919,-151.0,0.00012778,2]
[325126061,1714528250938,-500.0,0.00012778,2]
[325126063,1714528250952,-256.59164,0.00012778,2]
[325126065,1714528250962,-151.0,0.00012778,2]
[325126067,1714528250972,-151.0,0.00012778,2]
[325126069,1714528250982,-256.59164,0.00012778,2]
[325126071,1714528250992,-151.0,0.00012778,2]
[325126073,1714528251002,-256.59164,0.00012778,2]
[325126075,1714528251013,-500.0,0.00012778,2]
[325126077,1714528251024,-500.0,0.00012778,2]
[325126079,1714528251033,-256.59164,0.00012778,2]
[325126081,1714528251043,-256.59164,0.00012778,2]
[325126083,1714528251052,-256.59164,0.00012778,2]
[325126085,1714528251062,-749.288209,0.00012778,2]
[325126087,1714528251072,-749.288209,0.00012778,2]
[325126090,1714528251082,-749.288209,0.00012778,2]
[325126092,1714528251091,-500.0,0.00012778,2]
[325126094,1714528251102,-749.288209,0.00012778,2]
[325126095,1714528251113,-749.288209,0.00012778,2]
[325126098,1714528251122,-749.288209,0.00012778,2]
[325126100,1714528251133,-500.0,0.00012778,2]
[325126102,1714528251142,-1295.255473,0.00012778,2]
[325126104,1714528251151,-963.813339,0.00012778,2]
[325126105,1714528251161,-1295.255473,0.00012778,2]
[325126107,1714528251171,-963.813339,0.00012778,2]
[325126110,1714528251180,-1295.255473,0.00012778,2]
[325126112,1714528251190,-963.813339,0.00012778,2]
[325126114,1714528251201,-500.0,0.00012778,2]
[325126116,1714528251210,-1295.255473,0.00012778,2]
[325126117,1714528251220,-1295.255473,0.00012778,2]
[325126120,1714528251230,-1295.255473,0.00012778,2]
[325126121,1714528251240,-963.813339,0.00012778,2]
[325126124,1714528251250,-963.813339,0.00012778,2]
[325126125,1714528251259,-963.813339,0.00012778,2]
[325126127,1714528251269,-500.0,0.00012778,2]
[325126129,1714528251279,-177.574276,0.00012778,2]
[325126133,1714528251300,-177.574276,0.00012778,2]
[325126135,1714528251311,-177.574276,0.00012778,2]
[325126137,1714528251322,-506.9174621,0.00012778,2]
[325126139,1714528251332,-177.574276,0.00012778,2]
[325126141,1714528251342,-177.574276,0.00012778,2]
[325126143,1714528251353,-177.574276,0.00012778,2]
[325126145,1714528251365,-932.653602,0.00012778,2]
[325126147,1714528251376,-503.23578244,0.00012778,2]
[325126149,1714528251386,-932.653602,0.00012778,2]
[325126151,1714528251396,-932.653602,0.00012778,2]
[325126153,1714528251407,-192.626697,0.00012778,2]
[325126155,1714528251418,-192.626697,0.00012778,2]
[325126157,1714528251429,-192.626697,0.00012778,2]
[325126160,1714528251440,-932.653602,0.00012778,2]
[325126162,1714528251451,-932.653602,0.00012778,2]
[325126164,1714528251461,-932.653602,0.00012778,2]
[325126166,1714528251472,-192.626697,0.00012778,2]
[325126168,1714528251483,-192.626697,0.00012778,2]
[325126170,1714528251494,-192.626697,0.00012778,2]
[325126172,1714528251504,-203.547099,0.00012778,2]
[325126174,1714528251515,-151.0,0.00012778,2]
[325126176,1714528251524,-151.0,0.00012778,2]
[325126178,1714528251535,-151.0,0.00012778,2]
[325126180,1714528251545,-151.0,0.00012778,2]
[325126182,1714528251555,-151.0,0.00012778,2]
[325126184,1714528251566,-151.0,0.00012778,2]
[325126186,1714528251576,-151.0,0.00012778,2]
[325126189,1714528251586,-151.0,0.00012778,2]
[325126191,1714528251596,-151.0,0.00012778,2]
[325126193,1714528251606,-151.0,0.00012778,2]
[325126195,1714528251618,-151.0,0.00012778,2]
[325126197,1714528251628,-279.7206,0.00012778,2]
[325126199,1714528251638,-617.112112,0.00012778,2]
[325126201,1714528251648,-617.112112,0.00012778,2]
[325126203,1714528251657,-617.112112,0.00012778,2]
[325126205,1714528251667,-617.112112,0.00012778,2]
[325126207,1714528251677,-617.112112,0.00012778,2]
[325126209,1714528251687,-617.112112,0.00012778,2]
[325126211,1714528251697,-151.0,0.00012778,2]
[325126213,1714528251706,-151.0,0.00012778,2]
[325126215,1714528251715,-151.0,0.00012778,2]
[325126217,1714528251725,-206.790171,0.00012778,2]
[325126219,1714528251735,-206.790171,0.00012778,2]
[325126221,1714528251744,-206.790171,0.00012778,2]
[325126223,1714528251754,-324.778298,0.00012778,2]
[325126225,1714528251763,-846.386611,0.00012778,2]
[325126227,1714528251772,-206.790171,0.00012778,2]
[325126229,1714528251781,-324.778298,0.00012778,2]
[325126231,1714528251790,-206.790171,0.00012778,2]
[325126233,1714528251799,-846.386611,0.00012778,2]
[325126235,1714528251809,-324.778298,0.00012778,2]
[325126237,1714528251818,-846.386611,0.00012778,2]
[325126239,1714528251828,-206.790171,0.00012778,2]
[325126241,1714528251838,-846.386611,0.00012778,2]
[325126243,1714528251848,-324.778298,0.00012778,2]
[325126245,1714528251857,-846.386611,0.00012778,2]
[325126247,1714528251868,-324.778298,0.00012778,2]
[325126249,1714528251877,-846.386611,0.00012778,2]
[325126252,1714528251887,-324.778298,0.00012778,2]
[325126254,1714528251896,-203.710258,0.00012778,2]
[325126256,1714528251910,-203.710258,0.00012778,2]
[325126258,1714528251920,-203.710258,0.00012778,2]
[325126260,1714528251931,-203.710258,0.00012778,2]
[325126261,1714528251940,-203.710258,0.00012778,2]
[325126262,1714528251949,-203.710258,0.00012778,2]
[325126263,1714528251959,-351.792258,0.00012778,2]
[325126264,1714528251968,-351.792258,0.00012778,2]
[325126265,1714528251977,-351.792258,0.00012778,2]
[325126266,1714528251987,-351.792258,0.00012778,2]
[325126267,1714528251997,-351.792258,0.00012778,2]
[325126268,1714528252009,-351.792258,0.00012778,2]
[325126269,1714528252018,-217.343379,0.00012778,2]
[325126270,1714528252027,-217.343379,0.00012778,2]
[325126271,1714528252036,-217.343379,0.00012778,2]
[325126272,1714528252046,-217.343379,0.00012778,2]
[325126273,1714528252055,-151.0,0.00012778,2]
[325126274,1714528252065,-151.0,0.00012778,2]
[325126275,1714528252074,-325.168371,0.00012778,2]
[325126276,1714528252084,-325.168371,0.00012778,2]
[325126277,1714528252093,-151.0,0.00012778,2]
[325126278,1714528252102,-151.0,0.00012778,2]
[325126279,1714528252112,-325.168371,0.00012778,2]
[325126280,1714528252122,-325.168371,0.00012778,2]
[325126281,1714528252131,-184.975745,0.00012778,2]
[325126282,1714528252141,-184.975745,0.00012778,2]
[325126283,1714528252150,-184.975745,0.00012778,2]
[325126284,1714528252159,-184.975745,0.00012778,2]
[325126285,1714528252169,-151.0,0.00012778,2]
[325126286,1714528252179,-151.0,0.00012778,2]
[325126287,1714528252188,-151.0,0.00012778,2]
[325126288,1714528252197,-151.0,0.00012778,2]
[325126289,1714528252207,-51063.6844,0.00012778,2]
[325126290,1714528252216,-292.137,0.00012778,2]
[325126291,1714528252226,-8.84939837,0.00012779,2]
[325126292,1714528252511,-492.0464462,0.00012779,2]
[325126293,1714528252521,-500.8410183,0.00012779,2]
[325126294,1714528252531,-501.32225162,0.00012779,2]
[325126295,1714528252540,-500.73724139,0.00012779,2]
[325126296,1714528252549,-500.44240235,0.00012779,2]
[325126297,1714528252558,-504.07109598,0.00012779,2]
[325126298,1714528252567,-500.0,0.00012779,2]
[325126299,1714528252578,-501.75565576,0.00012779,2]
[325126300,1714528252588,-151.0,0.00012779,2]
[325126301,1714528252597,-500.0,0.00012779,2]
[325126302,1714528252606,-151.0,0.00012779,2]
[325126303,1714528252617,-151.0,0.00012779,2]
[325126304,1714528252626,-151.0,0.00012779,2]
[325126305,1714528252636,-501.11251708,0.00012779,2]
[325126306,1714528252645,-151.0,0.00012779,2]
[325126307,1714528252654,-151.0,0.00012779,2]
[325126308,1714528252663,-151.0,0.00012779,2]
[325126309,1714528252673,-500.62461961,0.00012779,2]
[325126310,1714528252683,-151.0,0.00012779,2]
[325126311,1714528252692,-204.211994,0.00012779,2]
[325126312,1714528252702,-204.211994,0.00012779,2]
[325126313,1714528252711,-151.0,0.00012779,2]
[325126314,1714528252720,-154.718586,0.00012779,2]
[325126315,1714528252730,-154.718586,0.00012779,2]
[325126316,1714528252739,-387.414449,0.00012779,2]